fUSD/lending_fUSD_20260630
["ID","MTS","AMOUNT","RATE_DAILY","PERIOD"]
[426753687,1782780639000,-807.68,0.00013699,2]
[426753685,1782780639000,-200.0,0.00013699,2]
[426753680,1782780639000,-232.6,0.00013699,2]
[426753667,1782780639000,-7720.59,0.00013699,2]
[426753693,1782780639000,-433.0,0.00013707,2]
[426753676,1782780639000,-999.99,0.00013699,2]
[426753671,1782780639000,-9999.99,0.00013699,2]
[426753689,1782780639000,-4340.36,0.00013699,2]
[426753678,1782780639000,-606.76,0.00013699,2]
[426753691,1782780639000,-29262.68,0.00013699,2]
[426753725,1782780639000,-500.0,0.00014452,2]
[426753703,1782780639000,-500.0,0.00013802,2]
[426753705,1782780639000,-177.59409406,0.00013859,2]
[426753707,1782780639000,-163.66,0.00014023,2]
[426753715,1782780639000,-166.66,0.00014332,2]
[426753711,1782780639000,-166.66,0.00014053,2]
[426753713,1782780639000,-500.0,0.00014076,2]
[426753709,1782780639000,-29827.83585892,0.00014051,2]
[426753719,1782780639000,-500.0,0.00014452,2]
[426753717,1782780639000,-500.0,0.0001435,2]
[426753721,1782780639000,-500.0,0.00014452,2]
[426753737,1782780639000,-500.0,0.00014452,2]
[426753669,1782780639000,-9999.99,0.00013699,2]
[426753695,1782780639000,-166.66,0.00013775,2]
[426753665,1782780639000,-299.99,0.00013699,2]
[426753610,1782780639000,-500.0,0.00013698,2]
[426753673,1782780639000,-5266.14,0.00013699,2]
[426753727,1782780639000,-500.0,0.00014452,2]
[426753612,1782780639000,-500.0,0.00013698,2]
[426753615,1782780639000,-500.0,0.00013698,2]
[426753617,1782780639000,-500.0,0.00013698,2]
[426753619,1782780639000,-500.0,0.00013698,2]
[426753623,1782780639000,-500.0,0.00013698,2]
[426753625,1782780639000,-500.0,0.00013698,2]
[426753620,1782780639000,-500.0,0.00013698,2]
[426753627,1782780639000,-500.0,0.00013698,2]
[426753637,1782780639000,-500.0,0.00013698,2]
[426753639,1782780639000,-500.0,0.00013698,2]
[426753643,1782780639000,-500.0,0.00013698,2]
[426753645,1782780639000,-500.0,0.00013698,2]
[426753641,1782780639000,-500.0,0.00013698,2]
[426753630,1782780639000,-500.0,0.00013698,2]
[426753628,1782780639000,-500.0,0.00013698,2]
[426753647,1782780639000,-500.0,0.00013698,2]
[426753633,1782780639000,-500.0,0.00013698,2]
[426753649,1782780639000,-500.0,0.00013698,2]
[426753650,1782780639000,-500.0,0.00013698,2]
[426753635,1782780639000,-500.0,0.00013698,2]
[426753654,1782780639000,-9999.99,0.00013699,2]
[426753652,1782780639000,-150.99,0.00013699,2]
[426753658,1782780639000,-5192.45,0.00013699,2]
[426753656,1782780639000,-9999.99,0.00013699,2]
[426753663,1782780639000,-19999.99,0.00013699,2]
[426753724,1782780639000,-500.0,0.00014452,2]
[426753660,1782780639000,-9999.99,0.00013699,2]
[426753729,1782780639000,-500.0,0.00014452,2]
[426753796,1782780639000,-500.0,0.00014998,2]
[426753829,1782780639000,-162.9,0.00016582,2]
[426753803,1782780639000,-500.0,0.00015172,2]
[426753798,1782780639000,-604.43897703,0.00014998,2]
[426753802,1782780639000,-1852.42,0.00015045,2]
[426753800,1782780639000,-505.0,0.00015,2]
[426753808,1782780639000,-500.0,0.00015445,2]
[426753811,1782780639000,-500.0,0.00015719,2]
[426753806,1782780639000,-199.5,0.00015302,2]
[426753813,1782780639000,-505.0,0.00015813,2]
[426753804,1782780639000,-152.12,0.00015189,2]
[426753812,1782780639000,-18974.12856813,0.00015794,2]
[426753794,1782780639000,-500.0,0.00014998,2]
[426753816,1782780639000,-1851.33,0.00016019,2]
[426753817,1782780639000,-163.66,0.00016027,2]
[426753823,1782780639000,-272.35824239,0.00016438,10]
[426753818,1782780639000,-162.9,0.00016052,2]
[426753821,1782780639000,-1252.0,0.00016368,2]
[426753819,1782780639000,-272.35824239,0.00016052,10]
[426753825,1782780639000,-500.0,0.00016438,2]
[426753826,1782780639000,-370.7314216,0.00016438,2]
[426753824,1782780639000,-500.0,0.00016438,2]
[426753822,1782780639000,-10000.0,0.00016385,2]
[426753827,1782780639000,-1372.08,0.00016474,2]
[426753828,1782780639000,-4757.95,0.00016474,2]
[426753739,1782780639000,-500.0,0.00014452,2]
[426753815,1782780639000,-493.76656725,0.00015993,2]
[426753792,1782780639000,-500.0,0.00014998,2]
[426753809,1782780639000,-500.0,0.00015469,2]
[426753786,1782780639000,-1237.66,0.000149,2]
[426753790,1782780639000,-736.0,0.0001498,2]
[426753731,1782780639000,-500.0,0.00014452,2]
[426753733,1782780639000,-500.0,0.00014452,2]
[426753741,1782780639000,-500.0,0.00014452,2]
[426753735,1782780639000,-500.0,0.00014452,2]
[426753745,1782780639000,-500.0,0.00014452,2]
[426753743,1782780639000,-297.32710434,0.00014452,2]
[426753747,1782780639000,-500.0,0.00014452,2]
[426753749,1782780639000,-500.0,0.00014452,2]
[426753763,1782780639000,-456.34226342,0.00014452,2]
[426753757,1782780639000,-500.0,0.00014452,2]
[426753755,1782780639000,-500.0,0.00014452,2]
[426753751,1782780639000,-500.0,0.00014452,2]
[426753753,1782780639000,-500.0,0.00014452,2]
[426753788,1782780639000,-235.85,0.000149,2]
[426753784,1782780639000,-500.0,0.00014898,2]
[426753759,1782780639000,-500.0,0.00014452,2]
[426753781,1782780639000,-500.0,0.00014793,2]
[426753777,1782780639000,-1851.33,0.00014684,2]
[426753780,1782780639000,-200.0,0.00014793,2]
[426753771,1782780639000,-372.64,0.00014504,2]
[426753775,1782780639000,-500.0,0.00014624,2]
[426753769,1782780639000,-1576.76,0.00014504,2]
[426753761,1782780639000,-500.0,0.00014452,2]
[426753767,1782780639000,-4999.99,0.00014504,2]
[426753765,1782780639000,-623.95370158,0.00014452,2]
[426753773,1782780639000,-166.66,0.0001461,2]
[426753872,1782780640000,-151.0,0.00019913,2]
[426753876,1782780640000,-151.0,0.00019913,2]
[426753875,1782780640000,-151.0,0.00019913,2]
[426753874,1782780640000,-151.0,0.00019913,2]
[426753871,1782780640000,-151.0,0.00019913,2]
[426753867,1782780640000,-151.0,0.00019913,2]
[426753869,1782780640000,-151.0,0.00019913,2]
[426753868,1782780640000,-151.0,0.00019913,2]
[426753865,1782780640000,-4021.18252922,0.000199,2]
[426753866,1782780640000,-151.0,0.00019913,2]
[426753873,1782780640000,-151.0,0.00019913,2]
[426753870,1782780640000,-151.0,0.00019913,2]
[426753878,1782780640000,-151.0,0.00019913,2]
[426753892,1782780640000,-252.0,0.0002,2]
[426753888,1782780640000,-275.0,0.0002,2]
[426753879,1782780640000,-151.0,0.00019913,2]
[426753880,1782780640000,-151.0,0.00019913,2]
[426753881,1782780640000,-151.0,0.00019913,2]
[426753883,1782780640000,-151.0,0.00019913,2]
[426753882,1782780640000,-151.0,0.00019913,2]
[426753884,1782780640000,-151.0,0.00019913,2]
[426753887,1782780640000,-157.0,0.0002,2]
[426753885,1782780640000,-151.0,0.00019913,2]
[426753886,1782780640000,-175.74808293,0.00019963,2]
[426753889,1782780640000,-475.0,0.0002,2]
[426753891,1782780640000,-201.0,0.0002,2]
[426753861,1782780640000,-192.08612594,0.000195,2]
[426753877,1782780640000,-151.0,0.00019913,2]
[426753864,1782780640000,-505.0,0.00019875,6]
[426753830,1782780640000,-9320.5888398,0.00016584,2]
[426753859,1782780640000,-192.08612594,0.000193,2]
[426753893,1782780640000,-664.0,0.0002,2]
[426753831,1782780640000,-505.0,0.00016625,3]
[426753832,1782780640000,-29827.83585892,0.00016631,2]
[426753833,1782780640000,-4823.23,0.00016771,2]
[426753834,1782780640000,-500.0,0.00016806,2]
[426753835,1782780640000,-500.0,0.00016806,2]
[426753838,1782780640000,-162.9,0.00017111,2]
[426753837,1782780640000,-500.0,0.00016806,2]
[426753842,1782780640000,-162.9,0.00017641,2]
[426753840,1782780640000,-505.0,0.00017437,4]
[426753844,1782780640000,-156.45618947,0.00017692,2]
[426753846,1782780640000,-1817.0,0.00017893,2]
[426753847,1782780640000,-163.66,0.0001803,2]
[426753845,1782780640000,-152.12,0.0001772,2]
[426753848,1782780640000,-162.9,0.00018171,2]
[426753850,1782780640000,-501.96465776,0.00018275,2]
[426753853,1782780640000,-229.9,0.0001872,2]
[426753849,1782780640000,-505.0,0.0001825,4]
[426753852,1782780640000,-162.9,0.00018701,2]
[426753855,1782780640000,-505.0,0.00019062,5]
[426753854,1782780640000,-165.94425905,0.00018758,2]
[426753851,1782780640000,-18974.12856813,0.00018322,2]
[426753858,1782780640000,-29827.83585892,0.00019212,2]
[426753862,1782780640000,-4021.18252922,0.000195,2]
[426753860,1782780640000,-4021.18252922,0.000193,2]
[426753856,1782780640000,-163.071038,0.00019122,2]
[426753863,1782780640000,-4021.18252922,0.000197,2]
[426753857,1782780640000,-173.01,0.000192,7]
[426753898,1782780640000,-1132.30584591,0.00020066,7]
[426753890,1782780640000,-560.0,0.0002,2]
[426753894,1782780640000,-152.0,0.0002,2]
[426753940,1782780640000,-500.0,0.00021888,2]
[426753930,1782780640000,-190.18706304,0.000212,2]
[426753941,1782780640000,-500.0,0.00021888,2]
[426753942,1782780640000,-190.18706304,0.000219,2]
[426753934,1782780640000,-505.0,0.000215,7]
[426753929,1782780640000,-4021.18252922,0.000211,2]
[426753935,1782780640000,-665.07,0.0002153,2]
[426753932,1782780640000,-23088.22,0.00021273,2]
[426753933,1782780640000,-190.18706304,0.000214,2]
[426753931,1782780640000,-275.47,0.00021273,2]
[426753936,1782780640000,-9320.5888398,0.00021597,2]
[426753939,1782780640000,-500.0,0.00021888,2]
[426753938,1782780640000,-29827.83585892,0.00021792,2]
[426753925,1782780640000,-152.0,0.00021,2]
[426753943,1782780640000,-5000.0,0.00021918,2]
[426753949,1782780640000,-201.0,0.00022,2]
[426753953,1782780640000,-171.0,0.00022,2]
[426753947,1782780640000,-475.0,0.00022,2]
[426753950,1782780640000,-252.0,0.00022,2]
[426753946,1782780640000,-275.0,0.00022,2]
[426753952,1782780640000,-152.0,0.00022,2]
[426753951,1782780640000,-664.0,0.00022,2]
[426753948,1782780640000,-560.0,0.00022,2]
[426753955,1782780640000,-869.0,0.00022,2]
[426753944,1782780640000,-150.0,0.00021918,2]
[426753954,1782780640000,-568.54,0.00022,2]
[426753899,1782780640000,-1997.52172869,0.00020066,7]
[426753956,1782780640000,-165.72,0.00022088,2]
[426753945,1782780640000,-157.0,0.00022,2]
[426753924,1782780640000,-664.0,0.00021,2]
[426753937,1782780640000,-190.18706304,0.000216,2]
[426753923,1782780640000,-252.0,0.00021,2]
[426753901,1782780640000,-152.12,0.00020251,2]
[426753928,1782780640000,-190.18706304,0.00021,2]
[426753900,1782780640000,-4021.18252922,0.000201,2]
[426753896,1782780640000,-869.0,0.0002,2]
[426753895,1782780640000,-171.0,0.0002,2]
[426753897,1782780640000,-429.06368225,0.00020066,7]
[426753913,1782780640000,-18974.12856813,0.0002085,2]
[426753903,1782780640000,-249.0,0.00020302,2]
[426753902,1782780640000,-4021.18252922,0.000203,2]
[426753915,1782780640000,-15000.0,0.00021,2]
[426753904,1782780640000,-4021.18252922,0.000205,2]
[426753906,1782780640000,-598.6,0.00020548,2]
[426753907,1782780640000,-500.0,0.00020659,2]
[426753909,1782780640000,-500.0,0.00020659,2]
[426753914,1782780640000,-4021.18252922,0.000209,2]
[426753905,1782780640000,-150.0,0.00020547,2]
[426753926,1782780640000,-171.0,0.00021,2]
[426753908,1782780640000,-500.0,0.00020659,2]
[426753927,1782780640000,-869.0,0.00021,2]
[426753920,1782780640000,-475.0,0.00021,2]
[426753918,1782780640000,-157.0,0.00021,2]
[426753922,1782780640000,-201.0,0.00021,2]
[426753919,1782780640000,-275.0,0.00021,2]
[426753917,1782780640000,-504.16657649,0.00021,2]
[426753916,1782780640000,-6111.0,0.00021,2]
[426753911,1782780640000,-505.0,0.00020688,7]
[426753912,1782780640000,-4021.18252922,0.000207,2]
[426753910,1782780640000,-281.64699897,0.00020659,2]
[426753921,1782780640000,-560.0,0.00021,2]
[426754000,1782780641000,-216.77510015,0.00023631,2]
[426753998,1782780641000,-176.74478931,0.00023631,2]
[426754005,1782780641000,-189.18085994,0.00023631,2]
[426753995,1782780641000,-185.14235001,0.00023631,2]
[426753999,1782780641000,-218.45150209,0.00023631,2]
[426753997,1782780641000,-161.73271233,0.00023631,2]
[426753994,1782780641000,-161.99419658,0.00023631,2]
[426753991,1782780641000,-155.01890587,0.00023627,2]
[426753990,1782780641000,-18974.12856813,0.00023379,2]
[426753989,1782780641000,-157.48811059,0.00023288,2]
[426753988,1782780641000,-150.0,0.00023288,2]
[426754003,1782780641000,-158.90133289,0.00023631,2]
[426753996,1782780641000,-191.90104982,0.00023631,2]
[426754006,1782780641000,-180.32901812,0.00023631,2]
[426754014,1782780641000,-185.01771763,0.00023644,2]
[426754001,1782780641000,-156.69209207,0.00023631,2]
[426754004,1782780641000,-155.80312789,0.00023631,2]
[426754008,1782780641000,-174.43068003,0.00023631,2]
[426754017,1782780641000,-150.61759924,0.00023644,2]
[426754018,1782780641000,-202.26807697,0.00023644,2]
[426754010,1782780641000,-152.93317974,0.00023631,2]
[426754009,1782780641000,-187.93681228,0.00023631,2]
[426754016,1782780641000,-177.85626479,0.00023644,2]
[426754007,1782780641000,-182.62334235,0.00023631,2]
[426754013,1782780641000,-165.04198848,0.00023644,2]
[426754012,1782780641000,-180.39720908,0.00023644,2]
[426754011,1782780641000,-182.68334485,0.00023644,2]
[426753987,1782780641000,-150.0,0.00023288,2]
[426754002,1782780641000,-203.08260919,0.00023631,2]
[426753985,1782780641000,-150.0,0.00023288,2]
[426753964,1782780641000,-665.07,0.000229,2]
[426753981,1782780641000,-150.0,0.00023288,2]
[426754015,1782780641000,-188.25938531,0.00023644,2]
[426753957,1782780641000,-665.07,0.00022215,2]
[426753965,1782780641000,-507.51541024,0.00022985,2]
[426753966,1782780641000,-157.0,0.00023,2]
[426753959,1782780641000,-292.58,0.00022466,2]
[426753967,1782780641000,-275.0,0.00023,2]
[426753958,1782780641000,-505.0,0.00022312,8]
[426753960,1782780641000,-1666.23,0.00022466,2]
[426753968,1782780641000,-475.0,0.00023,2]
[426753962,1782780641000,-500.0,0.00022577,2]
[426753961,1782780641000,-1347.08,0.00022466,2]
[426753963,1782780641000,-152.12,0.00022783,2]
[426753969,1782780641000,-560.0,0.00023,2]
[426753986,1782780641000,-150.0,0.00023288,2]
[426753970,1782780641000,-201.0,0.00023,2]
[426753972,1782780641000,-664.0,0.00023,2]
[426753980,1782780641000,-150.0,0.00023288,2]
[426753973,1782780641000,-152.0,0.00023,2]
[426753975,1782780641000,-869.0,0.00023,2]
[426753976,1782780641000,-150.0,0.00023014,2]
[426753977,1782780641000,-505.0,0.00023125,9]
[426753978,1782780641000,-324.30939278,0.00023254,2]
[426753974,1782780641000,-171.0,0.00023,2]
[426753979,1782780641000,-150.0,0.00023288,2]
[426753982,1782780641000,-150.0,0.00023288,2]
[426753992,1782780641000,-187.81331854,0.00023631,2]
[426753983,1782780641000,-150.0,0.00023288,2]
[426753993,1782780641000,-176.45424766,0.00023631,2]
[426753971,1782780641000,-252.0,0.00023,2]
[426754019,1782780641000,-161.79286925,0.00023644,2]
[426754072,1782780641000,-348.86136007,0.00024888,2]
[426754020,1782780641000,-197.22258442,0.00023644,2]
[426754050,1782780641000,-235.86108831,0.00024888,2]
[426754055,1782780641000,-383.80209964,0.00024888,2]
[426754067,1782780641000,-360.65803624,0.00024888,2]
[426754069,1782780641000,-365.24668469,0.00024888,2]
[426754057,1782780641000,-323.46542466,0.00024888,2]
[426754068,1782780641000,-159.72018684,0.00024888,2]
[426754056,1782780641000,-167.54671676,0.00024888,2]
[426754058,1782780641000,-353.48957861,0.00024888,2]
[426754059,1782780641000,-436.90300419,0.00024888,2]
[426754060,1782780641000,-176.7845279,0.00024888,2]
[426754062,1782780641000,-313.38418414,0.00024888,2]
[426754065,1782780641000,-378.36171989,0.00024888,2]
[426754063,1782780641000,-406.16521837,0.00024888,2]
[426754051,1782780641000,-375.62663708,0.00024888,2]
[426754066,1782780641000,-311.60625578,0.00024888,2]
[426754070,1782780641000,-245.60393004,0.00024888,2]
[426754079,1782780641000,-330.08397697,0.00024901,2]
[426754071,1782780641000,-221.46026609,0.00024888,2]
[426754076,1782780641000,-215.04522789,0.00024888,2]
[426754077,1782780641000,-365.36668969,0.00024901,2]
[426754081,1782780641000,-153.23427527,0.00024901,2]
[426754074,1782780641000,-209.47141511,0.00024888,2]
[426754073,1782780641000,-375.87362457,0.00024888,2]
[426754075,1782780641000,-305.86635947,0.00024888,2]
[426754078,1782780641000,-360.79441816,0.00024901,2]
[426754080,1782780641000,-370.03543526,0.00024901,2]
[426754082,1782780641000,-376.51877063,0.00024901,2]
[426754022,1782780641000,-174.40784466,0.00023644,2]
[426754064,1782780641000,-317.80266579,0.00024888,2]
[426754053,1782780641000,-323.98839317,0.00024888,2]
[426754061,1782780641000,-433.55020031,0.00024888,2]
[426754048,1782780641000,-505.0,0.0002475,10]
[426754046,1782780641000,-1000.0,0.00024658,2]
[426754021,1782780641000,-170.35589188,0.00023644,2]
[426754024,1782780641000,-505.0,0.00023937,9]
[426754023,1782780641000,-179.95329856,0.00023644,2]
[426754031,1782780641000,-475.0,0.00024,2]
[426754028,1782780641000,-500.0,0.00024,7]
[426754026,1782780641000,-500.0,0.00024,7]
[426754029,1782780641000,-162.0,0.00024,2]
[426754025,1782780641000,-500.0,0.00024,7]
[426754027,1782780641000,-500.0,0.00024,7]
[426754033,1782780641000,-1120.0,0.00024,7]
[426754043,1782780641000,-29827.83585892,0.00024373,2]
[426754044,1782780641000,-568.54,0.00024541,7]
[426754036,1782780641000,-664.0,0.00024,2]
[426754030,1782780641000,-275.0,0.00024,2]
[426754035,1782780641000,-252.0,0.00024,2]
[426754032,1782780641000,-560.0,0.00024,2]
[426754052,1782780641000,-352.90849531,0.00024888,2]
[426754049,1782780641000,-310.03781174,0.00024884,2]
[426754047,1782780641000,-563.48,0.00024658,2]
[426754045,1782780641000,-181.88,0.00024658,2]
[426754038,1782780641000,-171.0,0.00024,2]
[426754054,1782780641000,-370.28470002,0.00024888,2]
[426754037,1782780641000,-152.0,0.00024,2]
[426754042,1782780641000,-165.72,0.00024296,2]
[426754041,1782780641000,-150.0,0.00024164,2]
[426754040,1782780641000,-256.01,0.0002411,2]
[426754034,1782780641000,-201.0,0.00024,2]
[426754039,1782780641000,-869.0,0.00024,2]
[426754129,1782780642000,-353.5690558,0.00025726,2]
[426754124,1782780642000,-335.09343351,0.00025726,2]
[426754118,1782780642000,-563.43995562,0.00025726,2]
[426754114,1782780642000,-210.42658487,0.00025721,2]
[426754119,1782780642000,-529.36274297,0.00025726,2]
[426754117,1782780642000,-471.72217662,0.00025726,2]
[426754121,1782780642000,-485.98258975,0.00025726,2]
[426754115,1782780642000,-216.50659272,0.00025721,2]
[426754123,1782780642000,-575.70314946,0.00025726,2]
[426754116,1782780642000,-259.98669383,0.00025726,2]
[426754135,1782780642000,-567.54257983,0.00025726,2]
[426754120,1782780642000,-166.57269421,0.00025726,2]
[426754128,1782780642000,-655.35450628,0.00025726,2]
[426754132,1782780642000,-609.24782756,0.00025726,2]
[426754130,1782780642000,-650.32530046,0.00025726,2]
[426754127,1782780642000,-530.23436792,0.00025726,2]
[426754131,1782780642000,-470.07627621,0.00025726,2]
[426754125,1782780642000,-485.19813699,0.00025726,2]
[426754133,1782780642000,-476.70399868,0.00025726,2]
[426754136,1782780642000,-540.98705435,0.00025726,2]
[426754134,1782780642000,-467.40938366,0.00025726,2]
[426754138,1782780642000,-547.87002704,0.00025726,2]
[426754148,1782780642000,-242.37690128,0.00025739,2]
[426754137,1782780642000,-319.44037368,0.00025726,2]
[426754139,1782780642000,-491.20786009,0.00025726,2]
[426754141,1782780642000,-523.2920401,0.00025726,2]
[426754113,1782780642000,-203.4711664,0.00025721,2]
[426754126,1782780642000,-207.53980692,0.00025726,2]
[426754122,1782780642000,-555.42705004,0.00025726,2]
[426754143,1782780642000,-418.94283022,0.00025726,2]
[426754111,1782780642000,-431.93206847,0.00025721,2]
[426754083,1782780642000,-355.71252957,0.00024901,2]
[426754085,1782780642000,-404.53615395,0.00024901,2]
[426754084,1782780642000,-301.23519848,0.00024901,2]
[426754095,1782780642000,-286.0,0.00025,2]
[426754086,1782780642000,-323.5857385,0.00024901,2]
[426754096,1782780642000,-486.64602063,0.00025,2]
[426754087,1782780642000,-178.12885866,0.00024901,2]
[426754088,1782780642000,-394.44516884,0.00024901,2]
[426754090,1782780642000,-152.53067988,0.00024901,2]
[426754089,1782780642000,-340.71178375,0.00024901,2]
[426754092,1782780642000,-215.1063841,0.00024901,2]
[426754091,1782780642000,-348.81568932,0.00024901,2]
[426754094,1782780642000,-154.46935751,0.00024967,2]
[426754112,1782780642000,-465.05671761,0.00025721,2]
[426754093,1782780642000,-359.90659711,0.00024901,2]
[426754100,1782780642000,-673.83020111,0.00025,2]
[426754101,1782780642000,-155.0,0.00025,2]
[426754098,1782780642000,-201.0,0.00025,2]
[426754099,1782780642000,-252.0,0.00025,2]
[426754104,1782780642000,-298.69966629,0.00025279,2]
[426754105,1782780642000,-298.5,0.00025302,2]
[426754102,1782780642000,-173.0,0.00025,2]
[426754110,1782780642000,-248.36443086,0.00025721,2]
[426754106,1782780642000,-150.0,0.00025373,2]
[426754103,1782780642000,-888.10058497,0.00025,2]
[426754107,1782780642000,-233.0,0.0002552,2]
[426754108,1782780642000,-505.0,0.00025563,11]
[426754109,1782780642000,-159.99787058,0.00025721,2]
[426754097,1782780642000,-573.0,0.00025,2]
[426754140,1782780642000,-442.92053218,0.00025726,2]
[426754209,1782780642000,-502.64015027,0.00026285,2]
[426754147,1782780642000,-269.63362701,0.00025739,2]
[426754176,1782780642000,-248.99164921,0.00025739,2]
[426754178,1782780642000,-539.85989567,0.00025739,2]
[426754181,1782780642000,-449.03,0.00026027,7]
[426754186,1782780642000,-496.72886171,0.0002628,2]
[426754185,1782780642000,-203.72030867,0.0002628,2]
[426754183,1782780642000,-150.0,0.0002607,5]
[426754184,1782780642000,-319.99574117,0.0002628,2]
[426754189,1782780642000,-406.94233281,0.0002628,2]
[426754190,1782780642000,-168.88152899,0.0002628,2]
[426754188,1782780642000,-620.07562348,0.0002628,2]
[426754191,1782780642000,-169.25631379,0.0002628,2]
[426754187,1782780642000,-215.96603423,0.0002628,2]
[426754192,1782780642000,-246.28385176,0.0002628,2]
[426754193,1782780642000,-420.85316974,0.0002628,2]
[426754196,1782780642000,-151.03583196,0.0002628,2]
[426754195,1782780642000,-433.01318543,0.0002628,2]
[426754198,1782780642000,-519.97338766,0.00026285,2]
[426754208,1782780642000,-767.60419927,0.00026285,2]
[426754202,1782780642000,-164.36863685,0.00026285,2]
[426754197,1782780642000,-166.4894119,0.0002628,2]
[426754199,1782780642000,-707.58326492,0.00026285,2]
[426754201,1782780642000,-705.81699062,0.00026285,2]
[426754200,1782780642000,-751.25327416,0.00026285,2]
[426754207,1782780642000,-740.56940005,0.00026285,2]
[426754203,1782780642000,-158.27014302,0.00026285,2]
[426754204,1782780642000,-333.14538841,0.00026285,2]
[426754142,1782780642000,-563.81043685,0.00025726,2]
[426754177,1782780642000,-430.21276821,0.00025739,2]
[426754173,1782780642000,-305.06135975,0.00025739,2]
[426754205,1782780642000,-647.97678634,0.00026285,2]
[426754175,1782780642000,-523.22353398,0.00025739,2]
[426754172,1782780642000,-284.76188758,0.00025739,2]
[426754145,1782780642000,-237.04979323,0.00025726,2]
[426754146,1782780642000,-430.09045578,0.00025726,2]
[426754149,1782780642000,-185.75171505,0.00025739,2]
[426754151,1782780642000,-548.05003454,0.00025739,2]
[426754150,1782780642000,-290.14612559,0.00025739,2]
[426754154,1782780642000,-242.61557316,0.00025739,2]
[426754152,1782780642000,-229.81167333,0.00025739,2]
[426754153,1782780642000,-541.19162723,0.00025739,2]
[426754155,1782780642000,-495.12596545,0.00025739,2]
[426754157,1782780642000,-306.46855053,0.00025739,2]
[426754162,1782780642000,-190.18372415,0.00025739,2]
[426754159,1782780642000,-564.77815594,0.00025739,2]
[426754161,1782780642000,-192.38320141,0.00025739,2]
[426754144,1782780642000,-458.79953921,0.00025726,2]
[426754158,1782780642000,-214.00308607,0.00025739,2]
[426754164,1782780642000,-533.56879436,0.00025739,2]
[426754170,1782780642000,-591.66775325,0.00025739,2]
[426754168,1782780642000,-485.37860775,0.00025739,2]
[426754169,1782780642000,-356.25771732,0.00025739,2]
[426754179,1782780642000,-18974.12856813,0.00025907,2]
[426754180,1782780642000,-154.46935744,0.00025927,2]
[426754171,1782780642000,-511.06767563,0.00025739,2]
[426754166,1782780642000,-451.85279772,0.00025739,2]
[426754167,1782780642000,-606.80423092,0.00025739,2]
[426754165,1782780642000,-219.43357672,0.00025739,2]
[426754160,1782780642000,-278.29241529,0.00025739,2]
[426754156,1782780642000,-555.05315288,0.00025739,2]
[426754163,1782780642000,-217.3520439,0.00025739,2]
[426754252,1782780643000,-331.67554682,0.00026298,2]
[426754253,1782780643000,-213.98099958,0.00026298,2]
[426754249,1782780643000,-265.46981633,0.00026298,2]
[426754247,1782780643000,-730.73337939,0.00026298,2]
[426754241,1782780643000,-432.6875066,0.00026298,2]
[426754242,1782780643000,-434.32580055,0.00026298,2]
[426754245,1782780643000,-409.26730357,0.00026298,2]
[426754240,1782780643000,-169.83013097,0.00026298,2]
[426754248,1782780643000,-459.62334666,0.00026298,2]
[426754236,1782780643000,-645.13568367,0.00026285,2]
[426754244,1782780643000,-386.76487263,0.00026298,2]
[426754246,1782780643000,-580.29225119,0.00026298,2]
[426754257,1782780643000,-660.16795393,0.00026298,2]
[426754256,1782780643000,-161.44398867,0.00026298,2]
[426754250,1782780643000,-721.58883631,0.00026298,2]
[426754251,1782780643000,-403.38515777,0.00026298,2]